[Event "Titled Tuesday Blitz May 10 Late 2022"]
[White "Koutlas, Nikolaos"]
[Black "Mangialardo, Tiago Carvalho"]
[WhiteFideId "25827138"]
[BlackFideId "2130718"]
[WhiteElo "1645"]
[BlackElo "2126"]
[Result "1-0"]
[Round "02"]
[TimeControl "180+1"]
[Date "2022.05.11"]
[WhiteClock "0:00:21"]
[BlackClock "0:00:24"]

1. Nf3 {[%clk 0:02:57]}  Nf6 {[%clk 0:02:59]} 2. b4 {[%clk 0:02:53]}  e6 {[%clk 0:02:58]} 3. Bb2 {[%clk 0:02:54]}  Bxb4 {[%clk 0:02:56]} 4. e3 {[%clk 0:02:54]}  d5 {[%clk 0:02:52]} 5. c4 {[%clk 0:02:49]}  Be7 {[%clk 0:02:48]} 6. Nc3 {[%clk 0:02:44]}  O-O {[%clk 0:02:47]} 7. g4 {[%clk 0:02:43]}  Ne4 {[%clk 0:02:39]} 8. g5 {[%clk 0:02:35]}  Nd7 {[%clk 0:02:17]} 9. cxd5 {[%clk 0:02:25]}  Nxc3 {[%clk 0:02:16]} 10. Bxc3 {[%clk 0:02:21]}  exd5 {[%clk 0:02:15]} 11. h4 {[%clk 0:02:16]}  Nc5 {[%clk 0:02:11]} 12. h5 {[%clk 0:02:13]}  Ne4 {[%clk 0:02:07]} 13. Bb2 {[%clk 0:02:03]}  Bg4 {[%clk 0:02:03]} 14. Rg1 {[%clk 0:00:54]}  Bxh5 {[%clk 0:01:49]} 15. Bd3 {[%clk 0:00:40]}  Nxg5 {[%clk 0:01:42]} 16. Bxh7+ {[%clk 0:00:39]}  Nxh7 {[%clk 0:01:31]} 17. Rxg7+ {[%clk 0:00:38]}  Kh8 {[%clk 0:01:31]} 18. Ng5 {[%clk 0:00:26]}  Bxd1 {[%clk 0:00:24]} 19. Rxh7+ {[%clk 0:00:22]}  Kg8 {[%clk 0:00:24]} 20. Rh8# {[%clk 0:00:21]} 1-0


[Site "https://www.chess.com"]

[Event "Titled Tuesday Blitz May 10 Late 2022"]
[White "Kruckenhauser, Arthur"]
[Black "Alekseenko, Kirill"]
[WhiteFideId "1642812"]
[BlackFideId "4135539"]
[WhiteElo "2243"]
[BlackElo "2682"]
[Result "0-1"]
[Round "02"]
[TimeControl "180+1"]
[Date "2022.05.10"]
[WhiteClock "0:00:04"]
[BlackClock "0:00:22"]

1. e4 {[%clk 0:02:58]}  c5 {[%clk 0:03:00]} 2. c3 {[%clk 0:02:54]}  Qa5 {[%clk 0:03:00]} 3. Na3 {[%clk 0:02:53]}  e6 {[%clk 0:02:56]} 4. Nf3 {[%clk 0:02:52]}  Nc6 {[%clk 0:02:54]} 5. Nc4 {[%clk 0:02:48]}  Qc7 {[%clk 0:02:54]} 6. d4 {[%clk 0:02:48]}  cxd4 {[%clk 0:02:55]} 7. cxd4 {[%clk 0:02:48]}  d5 {[%clk 0:02:56]} 8. exd5 {[%clk 0:02:46]}  exd5 {[%clk 0:02:57]} 9. Nce5 {[%clk 0:02:45]}  Bd6 {[%clk 0:02:57]} 10. Nxc6 {[%clk 0:02:39]}  bxc6 {[%clk 0:02:57]} 11. Bd3 {[%clk 0:02:37]}  Ne7 {[%clk 0:02:50]} 12. O-O {[%clk 0:02:36]}  O-O {[%clk 0:02:50]} 13. Qc2 {[%clk 0:02:35]}  Ng6 {[%clk 0:02:47]} 14. Re1 {[%clk 0:02:28]}  Bg4 {[%clk 0:02:25]} 15. Bxg6 {[%clk 0:02:26]}  hxg6 {[%clk 0:01:56]} 16. Ne5 {[%clk 0:02:25]}  Bf5 {[%clk 0:01:56]} 17. Qc3 {[%clk 0:02:07]}  f6 {[%clk 0:01:55]} 18. Nf3 {[%clk 0:01:59]}  a5 {[%clk 0:01:49]} 19. a3 {[%clk 0:01:57]}  Bb4 {[%clk 0:01:43]} 20. axb4 {[%clk 0:00:40]}  axb4 {[%clk 0:01:44]} 21. Qxb4 {[%clk 0:00:40]}  Rxa1 {[%clk 0:01:40]} 22. h3 {[%clk 0:00:40]}  Qa5 {[%clk 0:01:26]} 23. Qb7 {[%clk 0:00:32]}  Be4 {[%clk 0:01:23]} 24. Kh2 {[%clk 0:00:27]}  Qa6 {[%clk 0:01:17]} 25. Qd7 {[%clk 0:00:19]}  Qa8 {[%clk 0:01:00]} 26. Nh4 {[%clk 0:00:15]}  Qb8+ {[%clk 0:00:57]} 27. g3 {[%clk 0:00:14]}  Qc8 {[%clk 0:00:48]} 28. Qd6 {[%clk 0:00:15]}  g5 {[%clk 0:00:47]} 29. Ng2 {[%clk 0:00:12]}  Rd8 {[%clk 0:00:47]} 30. Qc5 {[%clk 0:00:10]}  Qf5 {[%clk 0:00:44]} 31. f4 {[%clk 0:00:06]}  gxf4 {[%clk 0:00:38]} 32. Qe7 {[%clk 0:00:07]}  fxg3+ {[%clk 0:00:38]} 33. Kxg3 {[%clk 0:00:07]}  Qf3+ {[%clk 0:00:38]} 34. Kh4 {[%clk 0:00:08]}  Qf2+ {[%clk 0:00:32]} 35. Kh5 {[%clk 0:00:08]}  Bf3+ {[%clk 0:00:29]} 36. Kg6 {[%clk 0:00:08]}  Qc2+ {[%clk 0:00:22]} 37. Re4 {[%clk 0:00:04]}  Qxe4+ {[%clk 0:00:22]} 0-1


[Site "https://www.chess.com"]

[Event "Titled Tuesday Blitz May 10 Late 2022"]
[White "Leitao, Rafael"]
[Black "Nakamura, Hikaru"]
[WhiteFideId "2101246"]
[BlackFideId "2016192"]
[WhiteElo "2609"]
[BlackElo "2850"]
[Result "0-1"]
[Round "02"]
[TimeControl "180+1"]
[Date "2022.05.10"]
[WhiteClock "0:00:07"]
[BlackClock "0:00:20"]

1. e4 {[%clk 0:03:00]}  c6 {[%clk 0:02:56]} 2. d4 {[%clk 0:03:00]}  d5 {[%clk 0:02:52]} 3. e5 {[%clk 0:03:00]}  Bf5 {[%clk 0:02:52]} 4. Nd2 {[%clk 0:02:59]}  e6 {[%clk 0:02:52]} 5. Nb3 {[%clk 0:02:59]}  Nd7 {[%clk 0:02:49]} 6. Nf3 {[%clk 0:02:52]}  Ne7 {[%clk 0:02:47]} 7. Be2 {[%clk 0:02:48]}  h6 {[%clk 0:02:46]} 8. O-O {[%clk 0:02:47]}  g5 {[%clk 0:02:46]} 9. Ne1 {[%clk 0:02:42]}  Qc7 {[%clk 0:02:42]} 10. Bd2 {[%clk 0:02:30]}  Bg6 {[%clk 0:02:28]} 11. Rc1 {[%clk 0:02:15]}  Bg7 {[%clk 0:02:11]} 12. f4 {[%clk 0:02:00]}  gxf4 {[%clk 0:02:08]} 13. Bxf4 {[%clk 0:01:59]}  a5 {[%clk 0:02:07]} 14. a4 {[%clk 0:01:40]}  Qb6 {[%clk 0:02:06]} 15. Kh1 {[%clk 0:01:33]}  O-O {[%clk 0:02:04]} 16. Nd3 {[%clk 0:01:29]}  Rae8 {[%clk 0:01:58]} 17. Qd2 {[%clk 0:01:27]}  Kh7 {[%clk 0:01:58]} 18. Rf3 {[%clk 0:01:27]}  Nf5 {[%clk 0:01:50]} 19. Rh3 {[%clk 0:01:24]}  Rh8 {[%clk 0:01:42]} 20. Bg4 {[%clk 0:01:01]}  Nxd4 {[%clk 0:01:39]} 21. Bxh6 {[%clk 0:00:48]}  Nxb3 {[%clk 0:01:37]} 22. cxb3 {[%clk 0:00:46]}  Kg8 {[%clk 0:01:35]} 23. Bxg7 {[%clk 0:00:44]}  Kxg7 {[%clk 0:01:22]} 24. Nf4 {[%clk 0:00:31]}  Qb4 {[%clk 0:01:20]} 25. Qe3 {[%clk 0:00:28]}  Rxh3 {[%clk 0:01:20]} 26. Bxh3 {[%clk 0:00:29]}  Qe4 {[%clk 0:01:18]} 27. Qg3 {[%clk 0:00:25]}  Rh8 {[%clk 0:01:10]} 28. Re1 {[%clk 0:00:24]}  Qc2 {[%clk 0:01:11]} 29. Bxe6 {[%clk 0:00:23]}  fxe6 {[%clk 0:01:05]} 30. Nxe6+ {[%clk 0:00:22]}  Kg8 {[%clk 0:00:58]} 31. Nf4 {[%clk 0:00:19]}  Kg7 {[%clk 0:00:55]} 32. Ne6+ {[%clk 0:00:19]}  Kg8 {[%clk 0:00:34]} 33. Nf4 {[%clk 0:00:19]}  Rh6 {[%clk 0:00:34]} 34. Qg5 {[%clk 0:00:19]}  Qf2 {[%clk 0:00:30]} 35. Rg1 {[%clk 0:00:17]}  Qh4 {[%clk 0:00:29]} 36. Qxh4 {[%clk 0:00:16]}  Rxh4 {[%clk 0:00:30]} 37. Nxg6 {[%clk 0:00:17]}  Rg4 {[%clk 0:00:29]} 38. e6 {[%clk 0:00:16]}  Nf6 {[%clk 0:00:26]} 39. Ne7+ {[%clk 0:00:13]}  Kh7 {[%clk 0:00:25]} 40. Nf5 {[%clk 0:00:13]}  Re4 {[%clk 0:00:25]} 41. g4 {[%clk 0:00:12]}  Rxe6 {[%clk 0:00:22]} 42. g5 {[%clk 0:00:12]}  Ne4 {[%clk 0:00:23]} 43. h4 {[%clk 0:00:12]}  Kg6 {[%clk 0:00:23]} 44. Nd4 {[%clk 0:00:11]}  Re8 {[%clk 0:00:22]} 45. Kh2 {[%clk 0:00:11]}  c5 {[%clk 0:00:19]} 46. Nf3 {[%clk 0:00:11]}  d4 {[%clk 0:00:20]} 47. Kh3 {[%clk 0:00:10]}  Kh5 {[%clk 0:00:21]} 48. g6 {[%clk 0:00:10]}  d3 {[%clk 0:00:20]} 49. g7 {[%clk 0:00:09]}  Rg8 {[%clk 0:00:20]} 50. Re1 {[%clk 0:00:07]}  d2 {[%clk 0:00:20]} 51. Rd1 {[%clk 0:00:07]}  Nf2+ {[%clk 0:00:20]} 0-1


[Site "https://www.chess.com"]

[Event "Titled Tuesday Blitz May 10 Late 2022"]
[White "Leiva, Gianmarco"]
[Black "Svicevic, Rastko"]
[WhiteFideId "3804399"]
[BlackFideId "916315"]
[WhiteElo "2323"]
[BlackElo "2132"]
[Result "1-0"]
[Round "02"]
[TimeControl "180+1"]
[Date "2022.05.11"]
[WhiteClock "0:00:25"]
[BlackClock "0:00:01"]

1. Nf3 {[%clk 0:02:59]}  d5 {[%clk 0:02:59]} 2. g3 {[%clk 0:03:00]}  c6 {[%clk 0:02:52]} 3. c4 {[%clk 0:02:59]}  e6 {[%clk 0:02:50]} 4. Bg2 {[%clk 0:02:54]}  dxc4 {[%clk 0:02:45]} 5. a4 {[%clk 0:02:47]}  Nf6 {[%clk 0:02:38]} 6. Qc2 {[%clk 0:02:43]}  Na6 {[%clk 0:02:23]} 7. Qxc4 {[%clk 0:02:35]}  Be7 {[%clk 0:02:18]} 8. O-O {[%clk 0:02:35]}  O-O {[%clk 0:02:15]} 9. Nc3 {[%clk 0:02:36]}  Nd5 {[%clk 0:02:10]} 10. d4 {[%clk 0:02:26]}  Bd7 {[%clk 0:01:58]} 11. e4 {[%clk 0:02:19]}  Ndb4 {[%clk 0:01:54]} 12. Rd1 {[%clk 0:02:15]}  Qa5 {[%clk 0:01:40]} 13. Ne5 {[%clk 0:02:09]}  Be8 {[%clk 0:01:40]} 14. Bf4 {[%clk 0:02:06]}  Rd8 {[%clk 0:01:20]} 15. Rac1 {[%clk 0:02:04]}  Kh8 {[%clk 0:01:16]} 16. Qe2 {[%clk 0:02:03]}  Rc8 {[%clk 0:01:07]} 17. Qh5 {[%clk 0:02:00]}  f6 {[%clk 0:01:04]} 18. Nf7+ {[%clk 0:01:43]}  Bxf7 {[%clk 0:01:02]} 19. Qxa5 {[%clk 0:01:41]}  b6 {[%clk 0:01:02]} 20. Qxa6 {[%clk 0:01:16]}  Nxa6 {[%clk 0:01:03]} 21. e5 {[%clk 0:01:04]}  f5 {[%clk 0:00:39]} 22. Be3 {[%clk 0:00:56]}  Nb4 {[%clk 0:00:37]} 23. Ne2 {[%clk 0:00:54]}  g5 {[%clk 0:00:28]} 24. f4 {[%clk 0:00:48]}  h6 {[%clk 0:00:21]} 25. Bd2 {[%clk 0:00:45]}  Nd5 {[%clk 0:00:20]} 26. Kf2 {[%clk 0:00:39]}  g4 {[%clk 0:00:19]} 27. Nc3 {[%clk 0:00:36]}  Kg7 {[%clk 0:00:18]} 28. Bxd5 {[%clk 0:00:27]}  cxd5 {[%clk 0:00:18]} 29. Nb5 {[%clk 0:00:28]}  a6 {[%clk 0:00:15]} 30. Nc7 {[%clk 0:00:27]}  a5 {[%clk 0:00:08]} 31. Rc6 {[%clk 0:00:27]}  Bb4 {[%clk 0:00:01]} 32. Bxb4 {[%clk 0:00:26]}  axb4 {[%clk 0:00:01]} 33. b3 {[%clk 0:00:25]} 1-0


[Site "https://www.chess.com"]

[Event "Titled Tuesday Blitz May 10 Late 2022"]
[White "Lopez Del Alamo, Antonio"]
[Black "Chen, Justin"]
[WhiteFideId "2227339"]
[BlackFideId "2098199"]
[WhiteElo "2089"]
[BlackElo "2487"]
[Result "0-1"]
[Round "02"]
[TimeControl "180+1"]
[Date "2022.05.11"]
[WhiteClock "0:00:52"]
[BlackClock "0:01:43"]

1. e4 {[%clk 0:01:23]}  e6 {[%clk 0:02:56]} 2. d3 {[%clk 0:01:22]}  c5 {[%clk 0:02:50]} 3. Nd2 {[%clk 0:01:23]}  g6 {[%clk 0:02:47]} 4. Ngf3 {[%clk 0:01:23]}  Bg7 {[%clk 0:02:47]} 5. g3 {[%clk 0:01:24]}  Ne7 {[%clk 0:02:47]} 6. Bg2 {[%clk 0:01:25]}  O-O {[%clk 0:02:47]} 7. O-O {[%clk 0:01:26]}  Nbc6 {[%clk 0:02:47]} 8. Re1 {[%clk 0:01:23]}  d6 {[%clk 0:02:45]} 9. c3 {[%clk 0:01:23]}  b5 {[%clk 0:02:39]} 10. Nf1 {[%clk 0:01:21]}  b4 {[%clk 0:02:38]} 11. Qc2 {[%clk 0:01:20]}  a5 {[%clk 0:02:36]} 12. Be3 {[%clk 0:01:19]}  a4 {[%clk 0:02:29]} 13. a3 {[%clk 0:01:18]}  bxc3 {[%clk 0:02:25]} 14. bxc3 {[%clk 0:01:18]}  Bd7 {[%clk 0:02:25]} 15. d4 {[%clk 0:01:14]}  cxd4 {[%clk 0:02:24]} 16. cxd4 {[%clk 0:01:14]}  Na5 {[%clk 0:02:25]} 17. Rad1 {[%clk 0:01:07]}  Nb3 {[%clk 0:02:16]} 18. N1d2 {[%clk 0:01:05]}  Rb8 {[%clk 0:02:06]} 19. Nc4 {[%clk 0:01:04]}  Bb5 {[%clk 0:01:53]} 20. e5 {[%clk 0:01:02]}  Rc8 {[%clk 0:01:44]} 21. Bf1 {[%clk 0:00:52]}  d5 {[%clk 0:01:43]} 0-1


[Site "https://www.chess.com"]

[Event "Titled Tuesday Blitz May 10 Late 2022"]
[White "Lorenzo De La Riva, Lazaro"]
[Black "Rosen, Eric"]
[WhiteFideId "2268809"]
[BlackFideId "2032562"]
[WhiteElo "2325"]
[BlackElo "2362"]
[Result "0-1"]
[Round "02"]
[TimeControl "180+1"]
[Date "2022.05.11"]
[WhiteClock "0:00:08"]
[BlackClock "0:00:04"]

1. d4 {[%clk 0:03:00]}  d5 {[%clk 0:02:59]} 2. Nf3 {[%clk 0:03:00]}  Nf6 {[%clk 0:03:00]} 3. Bf4 {[%clk 0:02:59]}  c5 {[%clk 0:03:00]} 4. e3 {[%clk 0:02:58]}  Nc6 {[%clk 0:03:01]} 5. Nbd2 {[%clk 0:02:58]}  cxd4 {[%clk 0:03:01]} 6. exd4 {[%clk 0:02:58]}  Bf5 {[%clk 0:03:02]} 7. c3 {[%clk 0:02:56]}  e6 {[%clk 0:03:01]} 8. Qb3 {[%clk 0:02:55]}  Bd6 {[%clk 0:03:01]} 9. Bg3 {[%clk 0:02:54]}  Rb8 {[%clk 0:02:24]} 10. Be2 {[%clk 0:02:50]}  O-O {[%clk 0:02:25]} 11. O-O {[%clk 0:02:47]}  h6 {[%clk 0:02:25]} 12. a4 {[%clk 0:02:46]}  a6 {[%clk 0:02:22]} 13. Rfe1 {[%clk 0:02:45]}  Bxg3 {[%clk 0:02:16]} 14. hxg3 {[%clk 0:02:44]}  Qc7 {[%clk 0:02:16]} 15. Bf1 {[%clk 0:02:39]}  Rfc8 {[%clk 0:02:16]} 16. Ne5 {[%clk 0:02:34]}  Nxe5 {[%clk 0:02:07]} 17. Rxe5 {[%clk 0:02:35]}  Nd7 {[%clk 0:02:06]} 18. Ree1 {[%clk 0:02:31]}  Bg6 {[%clk 0:02:02]} 19. Nf3 {[%clk 0:02:30]}  Qd6 {[%clk 0:02:00]} 20. Ne5 {[%clk 0:02:28]}  Nxe5 {[%clk 0:02:00]} 21. Rxe5 {[%clk 0:02:29]}  Rc6 {[%clk 0:01:49]} 22. Re3 {[%clk 0:02:23]}  Qc7 {[%clk 0:01:43]} 23. Be2 {[%clk 0:02:04]}  Bf5 {[%clk 0:01:33]} 24. Bf3 {[%clk 0:01:47]}  Qd6 {[%clk 0:01:32]} 25. Re2 {[%clk 0:01:43]}  Rb6 {[%clk 0:01:32]} 26. Qa3 {[%clk 0:01:41]}  Qxa3 {[%clk 0:01:20]} 27. Rxa3 {[%clk 0:01:42]}  a5 {[%clk 0:01:21]} 28. Rd2 {[%clk 0:01:41]}  Kf8 {[%clk 0:01:20]} 29. Be2 {[%clk 0:01:40]}  Ke7 {[%clk 0:01:16]} 30. g4 {[%clk 0:01:40]}  Bg6 {[%clk 0:01:16]} 31. Bb5 {[%clk 0:01:39]}  Kd6 {[%clk 0:01:16]} 32. f4 {[%clk 0:01:37]}  Be4 {[%clk 0:01:15]} 33. Kf2 {[%clk 0:01:37]}  Kc7 {[%clk 0:01:14]} 34. Ra1 {[%clk 0:01:32]}  Rd6 {[%clk 0:01:13]} 35. Rh1 {[%clk 0:01:32]}  Rdd8 {[%clk 0:01:07]} 36. Kg3 {[%clk 0:01:31]}  Kd6 {[%clk 0:01:07]} 37. Rf2 {[%clk 0:01:30]}  Ke7 {[%clk 0:01:05]} 38. Rh5 {[%clk 0:01:29]}  Bg6 {[%clk 0:01:04]} 39. Rh1 {[%clk 0:01:28]}  Be4 {[%clk 0:01:05]} 40. Re1 {[%clk 0:01:27]}  Rh8 {[%clk 0:01:00]} 41. Rh1 {[%clk 0:01:23]}  Kd6 {[%clk 0:00:56]} 42. Rh2 {[%clk 0:01:14]}  Rbc8 {[%clk 0:00:49]} 43. Rh5 {[%clk 0:01:12]}  Bg6 {[%clk 0:00:48]} 44. Re5 {[%clk 0:01:11]}  Be4 {[%clk 0:00:45]} 45. Rh5 {[%clk 0:01:10]}  Rcg8 {[%clk 0:00:41]} 46. Rh3 {[%clk 0:00:59]}  Rh7 {[%clk 0:00:32]} 47. Kh2 {[%clk 0:00:54]}  Rgh8 {[%clk 0:00:33]} 48. f5 {[%clk 0:00:47]}  e5 {[%clk 0:00:33]} 49. dxe5+ {[%clk 0:00:46]}  Kxe5 {[%clk 0:00:34]} 50. Kg3 {[%clk 0:00:33]}  f6 {[%clk 0:00:33]} 51. Rh1 {[%clk 0:00:30]}  h5 {[%clk 0:00:33]} 52. Bd7 {[%clk 0:00:13]}  hxg4 {[%clk 0:00:33]} 53. Rxh7 {[%clk 0:00:13]}  Rxh7 {[%clk 0:00:34]} 54. Kxg4 {[%clk 0:00:13]}  Rh1 {[%clk 0:00:34]} 55. Re2 {[%clk 0:00:12]}  Rf1 {[%clk 0:00:29]} 56. Kg3 {[%clk 0:00:11]}  b6 {[%clk 0:00:30]} 57. c4 {[%clk 0:00:11]}  Rd1 {[%clk 0:00:15]} 58. cxd5 {[%clk 0:00:10]}  Rd3+ {[%clk 0:00:15]} 59. Kg4 {[%clk 0:00:09]}  Rxd5 {[%clk 0:00:05]} 60. Kh5 {[%clk 0:00:08]}  Rxd7 {[%clk 0:00:04]} 61. Kg6 {[%clk 0:00:08]}  Kf4 {[%clk 0:00:04]} 62. Rf2+ {[%clk 0:00:08]}  Kg3 {[%clk 0:00:04]} 63. Rd2 {[%clk 0:00:08]}  Rxd2 {[%clk 0:00:04]} 0-1


[Site "https://www.chess.com"]

[Event "Titled Tuesday Blitz May 10 Late 2022"]
[White "Manukian, Artak"]
[Black "Tanenbaum, Zachary"]
[WhiteFideId "13301373"]
[BlackFideId "2060850"]
[WhiteElo "2401"]
[BlackElo "2168"]
[Result "1-0"]
[Round "02"]
[TimeControl "180+1"]
[Date "2022.05.11"]
[WhiteClock "0:00:21"]
[BlackClock "0:00:06"]

1. e4 {[%clk 0:03:00]}  e5 {[%clk 0:03:00]} 2. Nf3 {[%clk 0:02:59]}  Nc6 {[%clk 0:03:00]} 3. d4 {[%clk 0:02:59]}  exd4 {[%clk 0:03:00]} 4. Nxd4 {[%clk 0:03:00]}  Bc5 {[%clk 0:03:00]} 5. Nxc6 {[%clk 0:03:00]}  Qf6 {[%clk 0:03:00]} 6. Qf3 {[%clk 0:03:01]}  bxc6 {[%clk 0:03:00]} 7. Bc4 {[%clk 0:02:58]}  d6 {[%clk 0:02:57]} 8. Nc3 {[%clk 0:02:57]}  Qxf3 {[%clk 0:02:56]} 9. gxf3 {[%clk 0:02:57]}  Ne7 {[%clk 0:02:57]} 10. h4 {[%clk 0:02:56]}  O-O {[%clk 0:02:56]} 11. h5 {[%clk 0:02:54]}  Be6 {[%clk 0:02:56]} 12. Bd3 {[%clk 0:02:49]}  f5 {[%clk 0:02:55]} 13. h6 {[%clk 0:02:48]}  g6 {[%clk 0:02:53]} 14. Be3 {[%clk 0:02:37]}  Bxe3 {[%clk 0:02:44]} 15. fxe3 {[%clk 0:02:37]}  fxe4 {[%clk 0:02:45]} 16. Nxe4 {[%clk 0:02:10]}  Rxf3 {[%clk 0:02:36]} 17. Ng5 {[%clk 0:02:09]}  Rxe3+ {[%clk 0:02:36]} 18. Kd2 {[%clk 0:02:06]}  Re5 {[%clk 0:02:34]} 19. Nf3 {[%clk 0:01:54]}  Ra5 {[%clk 0:01:11]} 20. Rae1 {[%clk 0:01:48]}  Bd5 {[%clk 0:01:10]} 21. Rxe7 {[%clk 0:01:42]}  Bxf3 {[%clk 0:01:10]} 22. Rf1 {[%clk 0:01:40]}  Rf8 {[%clk 0:00:58]} 23. Rg7+ {[%clk 0:01:31]}  Kh8 {[%clk 0:00:58]} 24. Rxc7 {[%clk 0:01:29]}  Kg8 {[%clk 0:00:49]} 25. Bc4+ {[%clk 0:01:22]}  d5 {[%clk 0:00:46]} 26. Be2 {[%clk 0:01:23]}  Rxa2 {[%clk 0:00:25]} 27. Rxf3 {[%clk 0:01:06]}  Rxf3 {[%clk 0:00:24]} 28. Bxf3 {[%clk 0:01:07]}  Rxb2 {[%clk 0:00:23]} 29. Rxc6 {[%clk 0:01:07]}  Rb4 {[%clk 0:00:14]} 30. Bxd5+ {[%clk 0:01:04]}  Kf8 {[%clk 0:00:14]} 31. c4 {[%clk 0:01:00]}  Rb2+ {[%clk 0:00:12]} 32. Kc3 {[%clk 0:00:59]}  Rh2 {[%clk 0:00:12]} 33. Rc8+ {[%clk 0:00:59]}  Ke7 {[%clk 0:00:13]} 34. Rc7+ {[%clk 0:01:00]}  Kf6 {[%clk 0:00:13]} 35. Rxh7 {[%clk 0:01:00]}  g5 {[%clk 0:00:11]} 36. Rxa7 {[%clk 0:00:59]}  g4 {[%clk 0:00:08]} 37. h7 {[%clk 0:00:55]}  g3 {[%clk 0:00:08]} 38. Rf7+ {[%clk 0:00:50]}  Ke5 {[%clk 0:00:08]} 39. Rg7 {[%clk 0:00:43]}  Rh3 {[%clk 0:00:08]} 40. Kb4 {[%clk 0:00:42]}  Kd4 {[%clk 0:00:07]} 41. Kb5 {[%clk 0:00:33]}  Rh5 {[%clk 0:00:03]} 42. Kc6 {[%clk 0:00:28]}  g2 {[%clk 0:00:01]} 43. Bxg2 {[%clk 0:00:25]}  Kxc4 {[%clk 0:00:01]} 44. Be4 {[%clk 0:00:23]}  Kd4 {[%clk 0:00:01]} 45. Bg6 {[%clk 0:00:23]}  Rh6 {[%clk 0:00:01]} 46. Rg8 {[%clk 0:00:23]}  Ke5 {[%clk 0:00:02]} 47. h8=Q+ {[%clk 0:00:23]}  Rxh8 {[%clk 0:00:02]} 48. Rxh8 {[%clk 0:00:24]}  Kf6 {[%clk 0:00:03]} 49. Rh2 {[%clk 0:00:23]}  Kg7 {[%clk 0:00:03]} 50. Kd6 {[%clk 0:00:23]}  Kf6 {[%clk 0:00:04]} 51. Rf2+ {[%clk 0:00:22]}  Kg7 {[%clk 0:00:04]} 52. Bb1 {[%clk 0:00:22]}  Kh8 {[%clk 0:00:04]} 53. Ke7 {[%clk 0:00:21]}  Kg7 {[%clk 0:00:04]} 54. Rg2+ {[%clk 0:00:20]}  Kh8 {[%clk 0:00:05]} 55. Ba2 {[%clk 0:00:20]}  Kh7 {[%clk 0:00:06]} 56. Kf6 {[%clk 0:00:20]}  Kh8 {[%clk 0:00:06]} 57. Kf7 {[%clk 0:00:20]}  Kh7 {[%clk 0:00:06]} 58. Rh2# {[%clk 0:00:21]} 1-0


[Site "https://www.chess.com"]

[Event "Titled Tuesday Blitz May 10 Late 2022"]
[White "Marin Ramirez, Gerardo"]
[Black "Papp, Petra"]
[WhiteFideId "3901068"]
[BlackFideId "739049"]
[WhiteElo "1920"]
[BlackElo "2259"]
[Result "0-1"]
[Round "02"]
[TimeControl "180+1"]
[Date "2022.05.11"]
[WhiteClock "0:00:03"]
[BlackClock "0:01:21"]

1. d4 {[%clk 0:02:59]}  Nf6 {[%clk 0:02:59]} 2. c4 {[%clk 0:02:58]}  g6 {[%clk 0:02:59]} 3. Nc3 {[%clk 0:02:57]}  d5 {[%clk 0:02:59]} 4. cxd5 {[%clk 0:02:53]}  Nxd5 {[%clk 0:03:00]} 5. Bd2 {[%clk 0:02:54]}  c5 {[%clk 0:02:56]} 6. e4 {[%clk 0:02:49]}  Nxc3 {[%clk 0:02:48]} 7. Bxc3 {[%clk 0:02:48]}  Bg7 {[%clk 0:02:48]} 8. Nf3 {[%clk 0:02:34]}  O-O {[%clk 0:02:48]} 9. Be2 {[%clk 0:02:27]}  Nd7 {[%clk 0:02:45]} 10. O-O {[%clk 0:02:25]}  e6 {[%clk 0:02:44]} 11. Rc1 {[%clk 0:02:17]}  b6 {[%clk 0:02:44]} 12. d5 {[%clk 0:02:10]}  exd5 {[%clk 0:02:42]} 13. exd5 {[%clk 0:02:08]}  Nf6 {[%clk 0:02:41]} 14. d6 {[%clk 0:01:55]}  Be6 {[%clk 0:02:38]} 15. a3 {[%clk 0:01:37]}  Nd5 {[%clk 0:02:30]} 16. Bxg7 {[%clk 0:01:33]}  Kxg7 {[%clk 0:02:23]} 17. Bc4 {[%clk 0:01:28]}  Qxd6 {[%clk 0:02:21]} 18. Ng5 {[%clk 0:01:26]}  Rad8 {[%clk 0:02:17]} 19. Qf3 {[%clk 0:01:15]}  Qf4 {[%clk 0:01:59]} 20. Bxd5 {[%clk 0:00:34]}  Qxg5 {[%clk 0:01:49]} 21. Bxe6 {[%clk 0:00:34]}  fxe6 {[%clk 0:01:49]} 22. Qe4 {[%clk 0:00:29]}  Qd5 {[%clk 0:01:43]} 23. Qe2 {[%clk 0:00:24]}  Qf5 {[%clk 0:01:35]} 24. Rc2 {[%clk 0:00:22]}  Rd6 {[%clk 0:01:33]} 25. Qc4 {[%clk 0:00:15]}  Rd4 {[%clk 0:01:25]} 26. Qc3 {[%clk 0:00:02]}  e5 {[%clk 0:01:23]} 27. Re2 {[%clk 0:00:03]}  e4 {[%clk 0:01:21]} 0-1


[Site "https://www.chess.com"]

[Event "Titled Tuesday Blitz May 10 Late 2022"]
[White "Matinian, Nikita"]
[Black "Koridze, Lile"]
[WhiteFideId "24129100"]
[BlackFideId "13612514"]
[WhiteElo "2776"]
[BlackElo "2466"]
[Result "0-1"]
[Round "02"]
[TimeControl "180+1"]
[Date "2022.05.11"]
[WhiteClock "0:00:29"]
[BlackClock "0:00:57"]

1. e4 {[%clk 0:03:00]}  c5 {[%clk 0:02:59]} 2. Nc3 {[%clk 0:02:54]}  d6 {[%clk 0:02:58]} 3. f4 {[%clk 0:02:50]}  a6 {[%clk 0:02:57]} 4. Nf3 {[%clk 0:02:50]}  Nc6 {[%clk 0:02:57]} 5. g3 {[%clk 0:02:43]}  Nf6 {[%clk 0:02:56]} 6. Bg2 {[%clk 0:02:42]}  e6 {[%clk 0:02:51]} 7. O-O {[%clk 0:02:42]}  Be7 {[%clk 0:02:51]} 8. b3 {[%clk 0:02:32]}  O-O {[%clk 0:02:51]} 9. Bb2 {[%clk 0:02:33]}  Qc7 {[%clk 0:02:51]} 10. e5 {[%clk 0:02:24]}  dxe5 {[%clk 0:02:40]} 11. fxe5 {[%clk 0:02:18]}  Nd7 {[%clk 0:02:38]} 12. Ne4 {[%clk 0:02:16]}  Ndxe5 {[%clk 0:02:38]} 13. Nxe5 {[%clk 0:02:15]}  Nxe5 {[%clk 0:02:38]} 14. Qh5 {[%clk 0:02:16]}  Ng6 {[%clk 0:02:36]} 15. Rae1 {[%clk 0:02:12]}  Rb8 {[%clk 0:02:36]} 16. h4 {[%clk 0:02:03]}  b5 {[%clk 0:02:35]} 17. Ng5 {[%clk 0:02:01]}  Bxg5 {[%clk 0:02:33]} 18. Qxg5 {[%clk 0:02:02]}  h6 {[%clk 0:02:29]} 19. Qg4 {[%clk 0:01:45]}  e5 {[%clk 0:02:19]} 20. Qe2 {[%clk 0:01:38]}  f6 {[%clk 0:02:02]} 21. Bd5+ {[%clk 0:01:28]}  Kh8 {[%clk 0:02:00]} 22. h5 {[%clk 0:01:26]}  Ne7 {[%clk 0:01:56]} 23. Bxe5 {[%clk 0:01:24]}  Qd8 {[%clk 0:01:52]} 24. Bxb8 {[%clk 0:01:20]}  Nxd5 {[%clk 0:01:52]} 25. Bf4 {[%clk 0:01:15]}  Bb7 {[%clk 0:01:51]} 26. Kh2 {[%clk 0:01:14]}  Qd7 {[%clk 0:01:50]} 27. Qe6 {[%clk 0:01:12]}  Qd8 {[%clk 0:01:32]} 28. Qd6 {[%clk 0:01:09]}  Qc8 {[%clk 0:01:30]} 29. c4 {[%clk 0:01:03]}  bxc4 {[%clk 0:01:26]} 30. bxc4 {[%clk 0:01:04]}  Nxf4 {[%clk 0:01:26]} 31. Qxf4 {[%clk 0:01:03]}  Qd7 {[%clk 0:01:23]} 32. Rf2 {[%clk 0:00:58]}  Qf7 {[%clk 0:01:23]} 33. g4 {[%clk 0:00:57]}  Rd8 {[%clk 0:01:21]} 34. Re3 {[%clk 0:00:57]}  Rd4 {[%clk 0:01:19]} 35. Qb8+ {[%clk 0:00:52]}  Kh7 {[%clk 0:01:19]} 36. Re8 {[%clk 0:00:52]}  g5 {[%clk 0:01:11]} 37. hxg6+ {[%clk 0:00:47]}  Kxg6 {[%clk 0:01:09]} 38. Rg8+ {[%clk 0:00:46]}  Kh7 {[%clk 0:01:09]} 39. Rf8 {[%clk 0:00:37]}  Qg7 {[%clk 0:00:59]} 40. R8xf6 {[%clk 0:00:32]}  Rxg4 {[%clk 0:00:57]} 41. Rf7 {[%clk 0:00:29]}  Rh4# {[%clk 0:00:57]} 0-1


[Site "https://www.chess.com"]